fUSD/lending_fUSD_20250308
["ID","MTS","AMOUNT","RATE_DAILY","PERIOD"]
[355650400,1741435841674,-752.32,8.219e-05,2]
[355650401,1741435841684,-500.0,8.219e-05,2]
[355650402,1741435841693,-500.0,8.219e-05,2]
[355650403,1741435841703,-500.0,8.219e-05,2]
[355650404,1741435841713,-500.0,8.219e-05,2]
[355650405,1741435841723,-500.0,8.219e-05,2]
[355650406,1741435841735,-679.63,8.219e-05,2]
[355650407,1741435841744,-500.0,8.219e-05,2]
[355650408,1741435841754,-693.42,8.219e-05,2]
[355650409,1741435841764,-500.0,8.219e-05,2]
[355650410,1741435841773,-500.0,8.219e-05,2]
[355650411,1741435841783,-500.0,8.219e-05,2]
[355650412,1741435841793,-500.0,8.219e-05,2]
[355650413,1741435841803,-551.37,8.219e-05,2]
[355650415,1741435841814,-500.0,8.219e-05,2]
[355650416,1741435841824,-500.0,8.219e-05,2]
[355650418,1741435841833,-997.28,8.219e-05,2]
[355650421,1741435841843,-500.0,8.219e-05,2]
[355650423,1741435841852,-646.74,8.219e-05,2]
[355650424,1741435841861,-500.0,8.219e-05,2]
[355650425,1741435841871,-500.0,8.219e-05,2]
[355650426,1741435841880,-500.0,8.219e-05,2]
[355650427,1741435841890,-720.41,8.219e-05,2]
[355650428,1741435841899,-500.0,8.219e-05,2]
[355650429,1741435841909,-160.69097672,8.219e-05,2]
[355650430,1741435841918,-650.74,8.219e-05,2]
[355650431,1741435841927,-643.99,8.219e-05,2]
[355650432,1741435841936,-656.19,8.219e-05,2]
[355650433,1741435841946,-167.90262099,8.219e-05,2]
[355650446,1741435844225,-332.09737901,8.219e-05,2]
[355650447,1741435844234,-512.57,8.219e-05,2]
[355650448,1741435844244,-70.77262099,8.219e-05,2]
[355650451,1741435845868,-429.22737901,8.219e-05,2]
[355650452,1741435845877,-205.62800204,8.219e-05,2]
[355650453,1741435845891,-278.95353199,8.219e-05,2]
[355650470,1741435866305,229.51538826,7.995e-05,2]
[355650471,1741436207582,284.15,7.546e-05,2]
[355650472,1741436736876,9486.33461174,8e-05,2]
[355650473,1741436736897,10000.0,8e-05,2]
[355650474,1741436736918,10000.0,8e-05,2]
[355650475,1741436736939,235.15879346,8e-05,2]
[355650476,1741436749165,302.34,0.00020111,120]
[355650480,1741436808201,167.45,7.87e-05,2]
[355650481,1741436824183,600.0,7.9e-05,2]
[355650492,1741436826379,1200.0,8e-05,2]
[355650496,1741436848009,7797.39120654,8e-05,2]
[355650497,1741436848034,10000.0,8e-05,2]
[355650498,1741436848055,10000.0,8e-05,2]
[355650499,1741436848077,10000.0,8e-05,2]
[355650500,1741436848099,7731.04153367,8e-05,2]
[355650549,1741437031962,-308.422,8.119e-05,2]
[355650550,1741437032073,-1480.47571765,8.119e-05,2]
[355650556,1741437038019,-1615.56808235,8.119e-05,2]
[355650557,1741437038031,-550.0,8.122e-05,2]
[355650558,1741437038040,-3054.43190765,8.132e-05,2]
[355650559,1741437038052,-1105.0,8.132e-05,2]
[355650560,1741437038063,-1805.132,8.132e-05,2]
[355650561,1741437038235,-1464.13262734,8.132e-05,2]
[355650562,1741437038245,-9048.36199384,8.188e-05,2]
[355650563,1741437038254,-696.02656301,8.218e-05,2]
[355650564,1741437038264,-1275.4,8.218e-05,2]
[355650565,1741437038274,-31020.42792036,8.218e-05,2]
[355650753,1741437040058,-35159.36688133,8.218e-05,2]
[355650760,1741437040123,-24488.756204,8.218e-05,2]
[355650762,1741437040135,-324.31961641,8.218e-05,2]
[355650764,1741437040146,-311.26588213,8.218e-05,2]
[355650766,1741437040158,-391.0403,8.218e-05,2]
[355650769,1741437040255,-8643.2994203,8.218e-05,2]
[355650776,1741437040310,-1376.2714883,8.218e-05,2]
[355650803,1741437040551,-777.30004535,8.218e-05,2]
[355650805,1741437040563,-441.52392476,8.218e-05,2]
[355650807,1741437040574,-652.27033598,8.218e-05,2]
[355651073,1741437043015,-1265.43355838,8.218e-05,2]
[355651153,1741437044415,-863.786817,8.218e-05,2]
[355651156,1741437046275,-1011.25530328,8.218e-05,2]
[355651157,1741437046286,-3425.55925324,8.218e-05,2]
[355651158,1741437095806,429.69,7.626e-05,2]
[355651159,1741437096012,429.69,7.65e-05,2]
[355651160,1741437096214,429.69,7.675e-05,2]
[355651161,1741437096722,429.69,7.699e-05,2]
[355651162,1741437096807,429.69,7.723e-05,2]
[355651163,1741437096869,120.50846633,7.747e-05,2]
[355651164,1741437096893,309.18153367,7.747e-05,2]
[355651165,1741437097038,429.69,7.771e-05,2]
[355651166,1741437097471,429.69,7.795e-05,2]
[355651167,1741437097691,429.69,7.819e-05,2]
[355651168,1741437098320,429.69,7.843e-05,2]
[355651169,1741437098378,429.69,7.867e-05,2]
[355651170,1741437098440,429.69,7.891e-05,2]
[355651171,1741437098737,429.69,7.915e-05,2]
[355651172,1741437098949,429.69,7.939e-05,2]
[355651173,1741437099155,429.69,7.964e-05,2]
[355651174,1741437099365,429.69,7.988e-05,2]
[355651175,1741437099770,429.69,8.012e-05,2]
[355651176,1741437099987,429.69,8.036e-05,2]
[355651177,1741437100223,429.69,8.06e-05,2]
[355651178,1741437126372,160.0,8.06e-05,3]
[355651179,1741437144160,296.93380158,5.237e-05,7]
[355651180,1741437307392,157.0,5.237e-05,3]
[355651181,1741437383987,176.23,7.522e-05,2]
[355651182,1741437410646,-1000.0,0.00025326,60]
[355651183,1741437410673,-1000.0,0.00025326,30]
[355651184,1741437410701,-1000.0,0.00025326,30]
[355651185,1741437410727,-1000.0,0.00025326,30]
[355651186,1741437410752,-1000.0,0.00025326,60]
[355651187,1741437410776,-1000.0,0.00025326,30]
[355651188,1741437410800,-1608.42543037,0.00025326,60]
[355651189,1741437410826,-5000.0,0.00025326,120]
[355651190,1741437410851,-685.85961862,0.00025326,30]
[355651191,1741437410876,-262.0,0.00025326,120]
[355651192,1741437410901,-2054.59301007,0.00025326,90]
[355651193,1741437410928,-507.21685157,0.00025326,30]
[355651194,1741437410953,-379.08141748,0.00025326,30]
[355651195,1741437410977,-228.58519276,0.00025326,91]
[355651196,1741437411002,-869.58462574,0.00025326,30]
[355651197,1741437411026,-1000.0,0.00025326,30]
[355651198,1741437411051,-749.18662691,0.00025326,120]
[355651199,1741437411074,-1996.03520148,0.00025326,30]
[355651200,1741437411097,-733.8023313,0.00025326,30]
[355651201,1741437411122,-1623.05069065,0.00025326,30]
[355651202,1741437411146,-263.23284289,0.00025326,30]
[355651203,1741437411169,-851.76737957,0.00025326,30]
[355651204,1741437411195,-859.9141213,0.00025326,30]
[355651205,1741437411224,-1070.38452721,0.00025326,90]
[355651206,1741437411248,-926.24885098,0.00025326,30]
[355651207,1741437411272,-157.92928591,0.00025326,60]
[355651208,1741437411298,-437.78433806,0.00025326,120]
[355651209,1741437411322,-207.31372181,0.00025326,30]
[355651210,1741437411345,-956.89794057,0.00025326,30]
[355651211,1741437411372,-591.47012116,0.00025326,120]
[355651212,1741437411398,-349.74317449,0.00025326,30]
[355651213,1741437411422,-205.23720567,0.00025326,30]
[355651214,1741437411448,-188.74257112,0.00025326,120]
[355651215,1741437411473,-153.71775609,0.00025326,120]
[355651216,1741437411498,-351.06586512,0.00025326,120]
[355651217,1741437411523,-509.57048943,0.00025326,120]
[355651218,1741437411548,-412.49552131,0.00025326,120]
[355651219,1741437411573,-352.83040589,0.00025326,120]
[355651220,1741437411598,-208.72983131,0.00025326,120]
[355651221,1741437411623,-166.01381305,0.00025326,120]
[355651222,1741437411647,-880.181608,0.00025326,30]
[355651223,1741437411671,-337.97518464,0.00025326,120]
[355651224,1741437411696,-993.33202686,0.00025326,120]
[355651225,1741437411720,-593.95296065,0.00025326,120]
[355651226,1741437411745,-202.71174769,0.00025326,30]
[355651227,1741437411769,-502.74452281,0.00025326,120]
[355651228,1741437411794,-1577.03041157,0.00025326,30]
[355651229,1741437411819,-1307.93569914,0.00025326,120]
[355651230,1741437411848,-265.51257355,0.00025326,30]
[355651231,1741437411873,-2677.40971737,0.00025326,30]
[355651232,1741437411897,-458.28838418,0.00025326,45]
[355651233,1741437411921,-1758.82941363,0.00025326,30]
[355651234,1741437411948,-2313.70008818,0.00025326,30]
[355651235,1741437411973,-151.77866509,0.00025326,60]
[355651236,1741437411998,-2029.22881412,0.00025326,120]
[355651237,1741437412023,-1901.60169081,0.00025326,120]
[355651238,1741437412053,-1456.21198572,0.00025326,30]
[355651239,1741437412082,-828.59840897,0.00025326,120]
[355651240,1741437412107,-2185.25891171,0.00025326,30]
[355651241,1741437412131,-309.17296495,0.00025326,120]
[355651242,1741437412155,-425.05555941,0.00025326,30]
[355651243,1741437412178,-1163.413,0.00025326,60]
[355651244,1741437412206,-1094.7900487,0.00025326,120]
[355651245,1741437412230,-1652.0794038,0.00025326,120]
[355651246,1741437412256,-3436.57182658,0.00025326,120]
[355651247,1741437412281,-204.4,0.00025326,30]
[355651248,1741437412309,-216416.84697278,0.00025326,30]
[355651249,1741437412334,-1000.0,0.00025326,60]
[355651250,1741437412551,-1000.0,0.00025326,60]
[355651251,1741437412588,-1000.0,0.00025326,30]
[355651252,1741437412612,-1000.0,0.00025326,30]
[355651253,1741437412639,-1000.0,0.00025326,120]
[355651254,1741437412662,-1000.0,0.00025326,30]
[355651255,1741437412687,-1000.0,0.00025326,30]
[355651256,1741437412711,-3000.0,0.00025326,120]
[355651257,1741437412735,-6274.72191862,0.00025326,120]
[355651258,1741437412759,-161.6750813,0.00025326,30]
[355651259,1741437412783,-156.11066792,0.00025326,60]
[355651260,1741437412807,-5280.99078403,0.00025326,60]
[355651261,1741437412831,-37510.10915507,0.00025326,30]
[355651262,1741437412856,-1000.0,0.00025326,30]
[355651263,1741437412879,-126471.83589995,0.00025326,30]
[355651264,1741437412903,-134192.46617707,0.00025326,30]
[355651265,1741437412927,-1079.77255242,0.00025326,30]
[355651266,1741437412951,-150.0,0.00025326,30]
[355651267,1741437412975,-221510.80754941,0.00025326,30]
[355651268,1741437412999,-365.0,0.00025326,120]
[355651269,1741437413024,-3000.0,0.00025326,120]
[355651270,1741437413049,-23161.95780654,0.00025326,60]
[355651271,1741437413073,-7499.999999,0.00025326,30]
[355651272,1741437413098,-1532.01252377,0.00025326,120]
[355651273,1741437413123,-1532.50774327,0.00025326,120]
[355651274,1741437413148,-2351.97736725,0.00025326,120]
[355651275,1741437425016,-153.31,0.000139,31]
[355651276,1741437425045,-153.31,0.000139,31]
[355651277,1741437425074,-153.31,0.000139,31]
[355651278,1741437425102,-153.31,0.000139,31]
[355651279,1741437425131,-153.31,0.000139,31]
[355651280,1741437425161,-153.31,0.000139,31]
[355651281,1741437425193,-153.31,0.000139,31]
[355651282,1741437425224,-153.31,0.000139,31]
[355651283,1741437425311,-1020.0,0.00015,30]
[355651284,1741437425348,-2255.47,0.00016493,30]
[355651285,1741437425382,-153.31,0.000188,31]
[355651286,1741437425411,-153.31,0.000188,31]
[355651287,1741437425444,-153.31,0.000188,31]
[355651288,1741437425474,-153.31,0.000188,31]
[355651289,1741437425507,-243.80071375,0.0002,30]
[355651290,1741437425545,-514.15256859,0.000209,30]
[355651291,1741437425570,-2255.47,0.00020971,30]
[355651292,1741437425598,-290.0,0.00021,120]
[355651293,1741437425623,-2072.09310833,0.00021,120]
[355651294,1741437425651,-1000.0,0.00021917,120]
[355651295,1741437425677,-1000.0,0.00021917,120]
[355651296,1741437425706,-503.0,0.0002197,30]
[355651297,1741437425733,-503.0,0.0002197,30]
[355651298,1741437425758,-503.0,0.0002198,30]
[355651299,1741437425784,-503.0,0.0002198,30]
[355651300,1741437425810,-503.0,0.0002198,30]
[355651301,1741437425836,-507.5,0.0002198,30]
[355651302,1741437425862,-192.58,0.0002199,120]
[355651303,1741437425886,-503.0,0.0002199,30]
[355651304,1741437425911,-503.0,0.0002199,30]
[355651305,1741437425935,-503.0,0.0002199,30]
[355651306,1741437425961,-503.0,0.0002199,30]
[355651307,1741437425987,-268.0,0.00022,120]
[355651308,1741437426012,-2000.0,0.0002216,120]
[355651309,1741437426038,-1811.73523137,0.000226,120]
[355651310,1741437426063,-3100.0,0.00023,120]
[355651311,1741437426088,-200.51314397,0.00023,30]
[355651312,1741437426114,-275.21551465,0.0002301,120]
[355651313,1741437426140,-900.0,0.00023111,30]
[355651314,1741437426168,-900.0,0.00023111,30]
[355651315,1741437426199,-900.0,0.00023111,30]
[355651316,1741437426231,-900.0,0.00023111,30]
[355651317,1741437426259,-900.0,0.00023111,30]
[355651318,1741437426285,-900.0,0.00023111,30]
[355651319,1741437426312,-900.0,0.00023111,30]
[355651320,1741437426337,-500.0,0.00023111,30]
[355651321,1741437426363,-900.0,0.00023111,30]
[355651322,1741437426390,-900.0,0.00023111,30]
[355651323,1741437426415,-900.0,0.00023111,30]
[355651324,1741437426452,-900.0,0.00023111,30]
[355651325,1741437426477,-512.9918902,0.00023111,30]
[355651326,1741437426504,-900.0,0.00023111,30]
[355651327,1741437426528,-500.40787565,0.00023111,30]
[355651328,1741437426553,-900.0,0.00023111,30]
[355651329,1741437426577,-500.0,0.00023111,30]
[355651330,1741437426602,-900.0,0.00023111,30]
[355651331,1741437426627,-500.28437651,0.00023111,30]
[355651332,1741437426652,-500.0,0.00023111,30]
[355651333,1741437426677,-500.0,0.00023111,30]
[355651334,1741437426705,-500.0,0.00023111,30]
[355651335,1741437426730,-500.0,0.00023111,30]
[355651336,1741437426755,-500.0,0.00023111,30]
[355651337,1741437426779,-500.0,0.00023111,30]
[355651338,1741437426804,-500.0,0.00023111,30]
[355651339,1741437426829,-500.0,0.00023111,30]
[355651340,1741437426854,-500.0,0.00023111,30]
[355651341,1741437426880,-500.0,0.00023111,30]
[355651342,1741437426906,-500.0,0.00023111,30]
[355651343,1741437426931,-500.0,0.00023111,30]
[355651344,1741437426958,-500.0,0.00023111,30]
[355651345,1741437426982,-500.0,0.00023111,30]
[355651346,1741437427006,-500.0,0.00023111,30]
[355651347,1741437427029,-500.0,0.00023111,30]
[355651348,1741437427053,-500.0,0.00023111,30]
[355651349,1741437427077,-500.0,0.00023111,30]
[355651350,1741437427101,-500.0,0.00023111,30]
[355651351,1741437427125,-500.0,0.00023111,30]
[355651352,1741437427374,-500.0,0.00023111,30]
[355651353,1741437427401,-500.0,0.00023111,30]
[355651354,1741437427426,-500.0,0.00023111,30]
[355651355,1741437427452,-342.25311896,0.00023111,30]
[355651356,1741437427477,-500.0,0.00023111,30]
[355651357,1741437427502,-500.0,0.00023111,30]
[355651358,1741437427528,-500.0,0.00023111,30]
[355651359,1741437427558,-981.36708786,0.00023111,30]
[355651360,1741437427583,-500.0,0.00023111,30]
[355651361,1741437427608,-500.0,0.00023111,30]
[355651362,1741437427633,-500.0,0.00023111,30]
[355651363,1741437427659,-500.0,0.00023111,30]
[355651364,1741437427686,-500.0,0.00023111,30]
[355651365,1741437427715,-500.2843698,0.00023111,30]
[355651366,1741437427741,-500.0,0.00023111,30]
[355651367,1741437427766,-500.0,0.00023111,30]
[355651368,1741437427791,-500.0,0.00023111,30]
[355651369,1741437427815,-500.0,0.00023111,30]
[355651370,1741437427840,-500.0,0.00023111,30]
[355651371,1741437427866,-500.0,0.00023111,30]
[355651372,1741437427891,-500.0,0.00023111,30]
[355651373,1741437427916,-500.0,0.00023111,30]
[355651374,1741437427941,-500.0,0.00023111,30]
[355651375,1741437427965,-485.55773,0.00023111,30]
[355651376,1741437427989,-2000.0,0.00023502,120]
[355651377,1741437428017,-153.31,0.000237,31]
[355651378,1741437428045,-153.31,0.000237,31]
[355651379,1741437428072,-153.31,0.000237,31]
[355651380,1741437428099,-153.31,0.000237,31]
[355651381,1741437428124,-150.0,0.00023778,120]
[355651382,1741437428149,-250.0,0.00024,120]
[355651383,1741437428174,-500.0,0.00024,60]
[355651384,1741437428204,-150.0,0.00024449,120]
[355651385,1741437428231,-2327.38,0.000247,30]
[355651386,1741437428256,-2000.0,0.00024843,120]
[355651387,1741437428281,-216.0,0.0002493,30]
[355651388,1741437428306,-2396.98320417,0.00025,30]
[355651389,1741437428330,-1452.80312747,0.00025,60]
[355651390,1741437428354,-3213.82614761,0.00025,60]
[355651391,1741437428378,-1237.33479339,0.00025,30]
[355651392,1741437428403,-227.2250723,0.00025,50]
[355651393,1741437428427,-180.0,0.00025,120]
[355651394,1741437428453,-515.32956215,0.00025,60]
[355651395,1741437428478,-540.21305613,0.00025,120]
[355651396,1741437428514,-2255.47,0.0002545,30]
[355651397,1741437428538,-500.0,0.00025541,120]
[355651398,1741437428567,-1000.0,0.00026,120]
[355651399,1741437428592,-2000.0,0.00026185,120]
[355651400,1741437428617,-500.0,0.00026357,120]
[355651401,1741437428641,-800.0,0.00026986,120]
[355651402,1741437428666,-800.0,0.00026986,120]
[355651403,1741437428690,-738.15,0.00026986,120]
[355651404,1741437428715,-1650.0,0.00027,70]
[355651405,1741437428740,-500.0,0.00027174,120]
[355651406,1741437428764,-1902.01425132,0.0002736,120]
[355651407,1741437428788,-2000.0,0.00027397,30]
[355651408,1741437428812,-2000.0,0.00027397,30]
[355651409,1741437428836,-2000.0,0.00027397,30]
[355651410,1741437428862,-2000.0,0.00027397,30]
[355651411,1741437428887,-2000.0,0.00027397,30]
[355651412,1741437428911,-2000.0,0.00027397,30]
[355651413,1741437428936,-2000.0,0.00027397,30]
[355651414,1741437428962,-2000.0,0.00027397,30]
[355651415,1741437428988,-2072.97760459,0.00027397,30]
[355651416,1741437429015,-701.63,0.00027397,60]
[355651417,1741437429042,-747.314299,0.00027526,120]
[355651418,1741437429067,-500.0,0.0002799,120]
[355651419,1741437429093,-1000.0,0.00028,120]
[355651420,1741437429118,-433.43274516,0.00028,120]
[355651421,1741437429143,-346.63239393,0.00028,120]
[355651422,1741437429168,-3109.54,0.000283,30]
[355651423,1741437429197,-153.31,0.000286,31]
[355651424,1741437429229,-153.31,0.000286,31]
[355651425,1741437429258,-153.31,0.000286,31]
[355651426,1741437429287,-153.31,0.000286,31]
[355651427,1741437429312,-500.0,0.00028807,120]
[355651428,1741437429336,-1945.60325696,0.00029,120]
[355651429,1741437429361,-1800.0,0.00029,30]
[355651430,1741437429386,-1550.0,0.00029,90]
[355651431,1741437429410,-5019.15665827,0.000295,30]
[355651432,1741437429434,-500.0,0.00029623,120]
[355651433,1741437429459,-3688.988,0.000298,30]
[355651434,1741437429486,-2255.47,0.00029928,30]
[355651435,1741437429512,-150.0,0.00029974,120]
[355651436,1741437429537,-100000.0,0.0003,30]
[355651437,1741437429562,-200.16267259,0.0003,120]
[355651438,1741437429587,-1000.0,0.0003,120]
[355651439,1741437429613,-3000.0,0.0003,120]
[355651440,1741437429637,-1800.0,0.0003,31]
[355651441,1741437429660,-1734.7385853,0.0003,120]
[355651442,1741437429684,-154.62531416,0.0003,120]
[355651443,1741437429709,-2000.0,0.0003,120]
[355651444,1741437429734,-500.0,0.0003044,120]
[355651445,1741437429757,-548.0,0.00030613,30]
[355651446,1741437429971,-100000.0,0.00031,31]
[355651447,1741437429997,-1450.0,0.00031,120]
[355651448,1741437430022,-1800.0,0.00031,32]
[355651449,1741437430048,-524.10749,0.000311,120]
[355651450,1741437430073,-500.0,0.00031256,120]
[355651451,1741437430099,-2022.68964342,0.0003152,120]
[355651452,1741437430123,-2327.38,0.000316,120]
[355651453,1741437430148,-172.75,0.00031644,91]
[355651454,1741437430176,-100000.0,0.00032,32]
[355651455,1741437430205,-1000.0,0.00032,120]
[355651456,1741437430231,-2000.0,0.00032,120]
[355651457,1741437430263,-500.0,0.00032073,120]
[355651458,1741437430289,-524.10749,0.000323,120]
[355651459,1741437430313,-12012.76363999,0.000325,30]
[355651460,1741437430337,-3090.90505297,0.000328,30]
[355651461,1741437430364,-500.0,0.00032889,120]
[355651462,1741437430390,-100000.0,0.00033,33]
[355651463,1741437430415,-865.78233395,0.00033,120]
[355651464,1741437430439,-2000.0,0.00033,120]
[355651465,1741437430466,-1350.0,0.00033,120]
[355651466,1741437430490,-524.10749,0.000335,120]
[355651467,1741437430519,-153.31,0.000335,31]
[355651468,1741437430546,-153.31,0.000335,31]
[355651469,1741437430571,-1275.401,0.00033664,36]
[355651470,1741437430596,-768.0,0.00033674,30]
[355651471,1741437430621,-500.0,0.00033706,120]
[355651472,1741437430647,-100000.0,0.00034,34]
[355651473,1741437430672,-1000.0,0.00034,120]
[355651474,1741437430696,-2000.0,0.00034,120]
[355651475,1741437430722,-991.96,0.0003435,30]
[355651476,1741437430747,-2255.47,0.00034406,120]
[355651477,1741437430773,-500.0,0.00034522,120]
[355651478,1741437430798,-524.10749,0.000347,120]
[355651479,1741437430823,-4000.0,0.00034984,31]
[355651480,1741437430849,-100000.0,0.00035,35]
[355651481,1741437430873,-3251.17665123,0.00035,30]
[355651482,1741437430897,-2000.0,0.00035,120]
[355651483,1741437430921,-1250.0,0.00035,120]
[355651484,1741437430947,-500.0,0.00035339,120]
[355651485,1741437430971,-10743.79568146,0.00035616,30]
[355651486,1741437430995,-524.10749,0.000359,120]
[355651487,1741437431020,-100000.0,0.00036,36]
[355651488,1741437431046,-2000000.0,0.00036,120]
[355651489,1741437431071,-1000.0,0.00036,120]
[355651490,1741437431098,-2000.0,0.00036,120]
[355651491,1741437431123,-1000000.0,0.00036,120]
[355651492,1741437431149,-1000000.0,0.00036,120]
[355651493,1741437431175,-84160.89107284,0.00036,120]
[355651494,1741437435998,-915839.10892716,0.00036,120]
[355651495,1741437436025,-1000000.0,0.00036,120]
[355651496,1741437436050,-211.0,0.00036,120]
[355651497,1741437436075,-500.0,0.00036155,120]
[355651498,1741437436100,-2332.15,0.000363,30]
[355651499,1741437436125,-150.0,0.00036414,120]
[355651500,1741437436150,-2000000.0,0.000365,120]
[355651501,1741437436177,-1000000.0,0.000365,120]
[355651502,1741437436207,-80967.74107284,0.000365,120]
[355651503,1741437442898,-919032.25892716,0.000365,120]
[355651504,1741437442923,-9000.0,0.000365,120]
[355651505,1741437442947,-500.0,0.00036972,120]
[355651506,1741437442973,-100000.0,0.00037,37]
[355651507,1741437442999,-2000.0,0.00037,120]
[355651508,1741437443024,-1000.0,0.00037,45]
[355651509,1741437443049,-2000000.0,0.00037,120]
[355651510,1741437443077,-1000000.0,0.00037,120]
[355651511,1741437443103,-968467.74107284,0.00037,120]
[355651512,1741437454120,-513.95399,0.00023111,30]
[355651513,1741437454146,-500.0,0.00023111,30]
[355651514,1741437454172,-500.0,0.00023111,30]
[355651515,1741437454198,-773.81913706,0.00023111,30]
[355651516,1741437454231,-192.58,0.0002399,120]
[355651517,1741437454281,-772.42340944,0.00028326,30]
[355651518,1741437454307,-500.0,0.00028326,30]
[355651519,1741437454332,-500.0,0.00028326,30]
[355651520,1741437454357,-500.0,0.00028326,30]
[355651521,1741437454383,-500.0,0.00028326,30]
[355651522,1741437454408,-500.0,0.00028326,30]
[355651523,1741437454432,-239.11956355,0.00028326,30]
[355651524,1741437454467,-31532.25892716,0.00037,120]
[355651525,1741437454491,-1150.0,0.00037,120]
[355651526,1741437454516,-2543.0,0.00037,117]
[355651527,1741437454540,-1075.0,0.00037042,30]
[355651528,1741437454565,-524.10749,0.000371,120]
[355651529,1741437454589,-1000.0,0.0003725,45]
[355651530,1741437454614,-1000.0,0.000375,45]
[355651531,1741437454639,-2000000.0,0.000375,120]
[355651532,1741437454663,-1000000.0,0.000375,120]
[355651533,1741437454689,-1000000.0,0.000375,120]
[355651534,1741437454714,-955183.73748279,0.000375,120]
[355651535,1741437459807,-500.0,0.00023111,30]
[355651536,1741437459834,-500.0,0.00023111,30]
[355651537,1741437459858,-507.00287997,0.00023111,30]
[355651538,1741437459882,-500.0,0.00023111,30]
[355651539,1741437459906,-500.0,0.00023111,30]
[355651540,1741437459931,-500.0,0.00023111,30]
[355651541,1741437459956,-500.0,0.00023111,30]
[355651542,1741437459981,-500.0,0.00023111,30]
[355651543,1741437460005,-500.0,0.00023111,30]
[355651544,1741437460030,-500.0,0.00023111,30]
[355651545,1741437460056,-699.70241413,0.00023111,30]
[355651546,1741437460082,-500.0,0.00023111,30]
[355651547,1741437460112,-500.0,0.00023111,30]
[355651548,1741437460136,-500.0,0.00023111,30]
[355651549,1741437460164,-263.62,0.0002397,30]
[355651550,1741437460188,-150.5,0.0002398,30]
[355651551,1741437460217,-150.5,0.0002399,30]
[355651552,1741437460270,-500.0,0.00028326,30]
[355651553,1741437460295,-500.0,0.00028326,30]
[355651554,1741437460321,-500.0,0.00028326,30]
[355651555,1741437460346,-500.0,0.00028326,30]
[355651556,1741437460370,-500.0,0.00028326,30]
[355651557,1741437460395,-500.0,0.00028326,30]
[355651558,1741437460419,-500.0,0.00028326,30]
[355651559,1741437460444,-500.0,0.00028326,30]
[355651560,1741437460469,-500.0,0.00028326,30]
[355651561,1741437460494,-500.0,0.00028326,30]
[355651562,1741437460519,-500.0,0.00028326,30]
[355651563,1741437460545,-500.0,0.00028326,30]
[355651564,1741437460571,-500.0,0.00028326,30]
[355651565,1741437460596,-500.0,0.00028326,30]
[355651566,1741437460621,-500.0,0.00028326,30]
[355651567,1741437460645,-500.0,0.00028326,30]
[355651568,1741437460671,-500.0,0.00028326,30]
[355651569,1741437460696,-500.0,0.00028326,30]
[355651570,1741437460722,-500.0,0.00028326,30]
[355651571,1741437460749,-500.0,0.00028326,30]
[355651572,1741437460776,-500.0,0.00028326,30]
[355651573,1741437460802,-500.0,0.00028326,30]
[355651574,1741437460827,-500.0,0.00028326,30]
[355651575,1741437460853,-500.0,0.00028326,30]
[355651576,1741437460878,-500.0,0.00028326,30]
[355651577,1741437460902,-500.0,0.00028326,30]
[355651578,1741437460927,-500.0,0.00028326,30]
[355651579,1741437460953,-500.0,0.00028326,30]
[355651580,1741437460989,-44816.26251721,0.000375,120]
[355651581,1741437461014,-1000.0,0.0003775,45]